Cogmind - Beta 17.1 @@@ ROGUE MODE // 2026.08.25 @ 18:05:16 Player: jat Result: Destroyed by 85-YH2(l) with Ripper Performance ------------- Evolutions (0) 0 Regions Visited (3) 600 Robots Destroyed (9) 45 Value Destroyed (201) 201 Prototype IDs (7) 140 Alien Tech Used (0) 0 Bonus (6150) 6150 TOTAL SCORE: 7136 Bonus ------- Prayed to X0-1V1 5000 Major X0-1V1 Interference 350 Registered with UFD 300 Met Optimus in HQ 500 Cogmind --------- Core Integrity 0/450 Matter 700/700 Energy 100/100 System Corruption 0% Temperature Cool (57) Movement Core (200) Ox3 Location -7/Scraptown Parts ------- > --- POWER (1) -------- (None) > --- PROPULSION (2) --- (None) > --- UTILITY (2) ------ Medium Storage Unit X0-1V1's Piety Tracker > --- WEAPON (2) ------- (None) > --- INVENTORY (10) --- Protomatter-41 Large Battery (200) Deep Structural Scanner Experimental Terrain Scanner Scrapoid Pod Assault Cannon Grenade Launcher Peak State ------------ > --- POWER ------------ Improved Deuterium Engine > --- PROPULSION ------- Overtuned Titanium Leg VSS Leg > --- UTILITY ---------- Medium Storage Unit X0-1V1's Piety Tracker > --- WEAPON ----------- Overtuned Barrage Gun Heavy Battle Rifle > --- INVENTORY -------- Large Battery Deep Structural Scanner Experimental Terrain Scanner Scrapoid Pod Assault Cannon Assault Cannon Assault Cannon Grenade Launcher Katana [Rating: 34] Favorites ----------- Power Light Ion Engine Engine Light Ion Engine Power Core Light Nuclear Core Propulsion Compact Wheel Leg Improved Aluminum Leg Wheel Compact Wheel Utility X0-1V1's Piety Tracker Device X0-1V1's Piety Tracker Storage Medium Storage Unit Processor Visual Processing Unit Protection Light Armor Plating Weapon Assault Rifle Ballistic Gun Assault Rifle Launcher Grenade Launcher Build | -11 -10 -10 -7 ------- Run | Yrd Mat Sub Scr Slots Evolved . | . . . . Power . | . . . . Propulsion . | . . . . Utility . | . . . . Weapon . | . . . . Parts Attached 26 | 5 5 4 12 Power 5 | 1 1 1 2 Engine 4 | 1 . 1 2 Core 1 | . 1 . . Reactor . | . . . . Propulsion 10 | 2 . . 8 Treads . | . . . . Leg 8 | . . . 8 Wheel 2 | 2 . . . Hover . | . . . . Flight . | . . . . Utility 6 | . 4 2 . Device 3 | . 1 2 . Storage 1 | . 1 . . Processor 1 | . 1 . . Hackware . | . . . . Protection 1 | . 1 . . Artifact . | . . . . Weapon 5 | 2 . 1 2 Energy Gun . | . . . . Energy Cannon . | . . . . Ballistic Gun 4 | 2 . . 2 Ballistic Cannon . | . . . . Launcher 1 | . . 1 . Special Weapon . | . . . . Impact Weapon . | . . . . Slashing Weapon . | . . . . Piercing Weapon . | . . . . Special Melee Weapon . | . . . . Unidentified Prototypes 1 | . 1 . . Parts Lost 10 | . . 4 6 Power 3 | . . 1 2 Propulsion 3 | . . 1 2 Utility 2 | . . 2 . Weapon 2 | . . . 2 Highest Loss Streak 6 | . . 3 6 To Critical Strikes . | . . . . Average Backups 6 | 1 4 4 8 Power . | . 1 . . Propulsion . | . . . . Utility 3 | . 2 2 3 Weapon 2 | . . 1 3 Tool/Special . | . . . . Unused Backups 11 | 1 . . 10 Power . | . . . . Propulsion 1 | 1 . . . Utility 5 | . . . 5 Weapon 4 | . . . 4 Tool/Special 1 | . . . 1 Average Slot Usage (%) 81 | . 99 86 71 Engine 10 | . 4 6 13 Core 3 | . 9 7 . Leg 7 | . . . 13 Wheel 15 | . 28 21 7 Device 10 | . . 17 14 Storage 8 | . 2 . 13 Processor 3 | . 10 . . Protection 4 | . 13 3 . Ballistic Gun 15 | . 28 23 6 Launcher 1 | . . 4 . Peak Build Rating 34 | 5 21 21 34 Average Rating 17 | 2 9 16 21 On Entrance 11 | . 5 21 18 Avg Prop Armor Cover (%) 8 | . . . 8 Naked Turns . | . . . . Heaviest Build 28 | 9 22 13 28 Greatest Support 38 | 32 32 32 38 Greatest Overweight (x) 6 | . . . 6 Average Overweight (x) . | . . . . Largest Inventory Capacity 10 | 5 10 5 10 Average Capacity 7 | 5 5 5 9 Most Carried 10 | 5 5 5 10 Average Carried 6 | 1 4 4 8 Final Capacity 10 | 5 5 5 10 Final Carried 8 | 1 5 4 8 Class Distribution -------------------- 87% | Mutant 12% | Scavenger-Mutant Dominant Class ---------------- Mutant | -10/Materials Mutant | -10/Subcaves Mutant | -7/Scraptown Resources | -11 -10 -10 -7 ----------- Run | Yrd Mat Sub Scr Matter Collected 1090 | 160 213 119 598 Remotely . | . . . . Salvage Created 230 | . 141 89 . Parts 21 | . 10 11 . Haulers Intercepted . | . . . . Recyclers Shooed . | . . . . Parts Field Recycled . | . . . . Retrieved Matter . | . . . . Parts Self-Destructed 23 | . . 23 . Prevented . | . . . . Parts Restored . | . . . . Kills | -11 -10 -10 -7 ------- Run | Yrd Mat Sub Scr Combat Hostiles Destroyed 7 | . 3 4 . Guns 7 | . 3 4 . Classes Destroyed 4 | . 2 2 . Turret 1 | . . 1 . Watcher 1 | . 1 . . Swarmer 4 | . . 4 . Grunt 3 | . 3 . . Best Kill Streak 3 | . 2 3 . Combat Bots Only 3 | . 2 3 . Max Kills in Single Turn 1 | . 1 1 . Gunslinging . | . . . . Exploded . | . . . . Melee . | . . . . Uniques/NPCs Destroyed . | . . . . Combat | -11 -10 -10 -7 -------- Run | Yrd Mat Sub Scr Hostile Shots Fired 186 | . 20 72 94 Missed 75 | . 6 35 34 Hits 111 | . 14 37 60 Melee 3 | . . . 3 Projectile 108 | . 14 37 57 Critical Strikes 5 | . 2 . 3 Damage Taken 1502 | . 207 272 1023 Core 465 | . 45 65 355 Absorbed by Shields . | . . . . Regen/Repaired (Parts) 23 | . . . 23 Core Remaining (%) 100 | 100 . . . Volleys Fired 38 | . 17 19 2 Largest 2 | . 2 2 2 Hottest 63 | . 40 50 63 Shots Fired 74 | . 34 38 2 Gun 70 | . 34 34 2 Cannon . | . . . . Launcher 4 | . . 4 . Special . | . . . . Kinetic 70 | . 34 34 2 Thermal . | . . . . Explosive 4 | . . 4 . Electromagnetic . | . . . . Robot Hit Streak 9 | . 9 9 1 Robot Miss Streak 6 | . 6 3 2 Penetration Max . | . . . . Secondary Targets 4 | . 1 3 . Max Gunslinging Chain 1 | . 1 1 . Shots Hit Robots 39 | . 19 19 1 Core Hits 15 | . 9 6 . Critical Kills . | . . . . Critical Parts Destroyed . | . . . . Critical Strikes . | . . . . Melee Attacks . | . . . . Impact . | . . . . Slashing . | . . . . Piercing . | . . . . Sneak Attacks . | . . . . Combat Hostiles . | . . . . Follow-up Attacks . | . . . . Damage Inflicted 509 | . 222 259 28 Guns 509 | . 222 259 28 Cannons . | . . . . Explosions . | . . . . Melee . | . . . . Ramming . | . . . . Kinetic 509 | . 222 259 28 Thermal . | . . . . Explosive . | . . . . Electromagnetic . | . . . . Impact . | . . . . Slashing . | . . . . Piercing . | . . . . Highest Corruption . | . . . . Average Corruption . | . . . . Corruption Purged . | . . . . Corruption Blocked . | . . . . Overload Shots . | . . . . Overflow Damage . | . . . . Projectiles . | . . . . Explosions . | . . . . Melee . | . . . . Knockbacks . | . . . . Impact . | . . . . Kinetic . | . . . . Secondary . | . . . . Self-Inflicted Damage 2 | . . 2 . Shots 1 | . . 1 . Rammed . | . . . . Targets Rammed . | . . . . Kicked . | . . . . Crushed . | . . . . Highest Temperature 225 | . 40 . 225 Average Temperature 42 | . 22 . 58 Received Heat Transfer 824 | . 144 156 524 Siege Activations . | . . . . Martial Activations . | . . . . Shielding Activations . | . . . . Robots Disrupted . | . . . . Combat Hostiles . | . . . . Robots Corrupted . | . . . . Combat Hostiles . | . . . . Parts Fried . | . . . . Impact Corruptions . | . . . . Robots Melted . | . . . . Combat Hostiles . | . . . . Parts Melted . | . . . . Heat Transferred . | . . . . Parts Sabotaged . | . . . . Parts Stolen . | . . . . Parts Stripped . | . . . . Power Chain Reactions . | . . . . Alert | -11 -10 -10 -7 ------- Run | Yrd Mat Sub Scr Maximum Alert Level . | . . . . Low Security (%) 100 | 100 100 . . Level 1 . | . . . . Level 2 . | . . . . Level 3 . | . . . . Level 4 . | . . . . Level 5 . | . . . . High Security . | . . . . Max Security . | . . . . Peak Influence 50 | . 50 . . Initial . | . . . . Average 4 | . 5 . . Influence Increases 197 | . 82 115 . Destroy 0b10 Robot/C 160 | . 60 100 . Destroy 0b10 Robot/NC 5 | . 5 . . Destroy Leader 12 | . 12 . . Successful Hack 5 | . 5 . . Lose Combat Pursuer 15 | . . 15 . Influence Decreases 197 | . 82 115 . Time Decay 157 | . 82 75 . Lost Part 40 | . . 40 . Squads Dispatched . | . . . . Investigation . | . . . . Extermination . | . . . . Reinforcement . | . . . . Assault . | . . . . Garrison . | . . . . Intercept . | . . . . Searches Triggered . | . . . . Construction Impeded . | . . . . Haulers Reinforced . | . . . . Active Scanning Responses . | . . . . Cargo Convoy Interrupts . | . . . . Stealth | -11 -10 -10 -7 --------- Run | Yrd Mat Sub Scr Distress Signals 1 | . . . 1 Communications Jammed . | . . . . Distress Signals . | . . . . Times Spotted 38 | . 9 7 22 Peak Tracking Total 8 | . 2 3 8 Tactical Retreats 2 | . . 1 1 Traps | -11 -10 -10 -7 ------- Run | Yrd Mat Sub Scr Traps Triggered 1 | . 1 . . Indirectly . | . . . . Trap Hack Attempts . | . . . . Triggered . | . . . . Disarmed . | . . . . Reprogrammed . | . . . . Reused . | . . . . Traps Extracted . | . . . . Installed . | . . . . Triggered . | . . . . Machines | -11 -10 -10 -7 ---------- Run | Yrd Mat Sub Scr Machines Disabled 1 | . . 1 . Max in Single Turn 1 | . . 1 . Machines Repaired . | . . . . Machines Dismantled . | . . . . Machines Sabotaged . | . . . . Overloaded Fab Kills . | . . . . Hacking | -11 -10 -10 -7 --------- Run | Yrd Mat Sub Scr Machines Accessed 7 | . 3 . 4 Terminals 3 | . 3 . . Fabricators . | . . . . Repair Stations . | . . . . Recycling Units . | . . . . Scanalyzers . | . . . . Garrison Access . | . . . . Total Hacks 26 | . 6 . 20 Successful 21 | . 1 . 20 Failed 5 | . 5 . . Catastrophic 1 | . 1 . . Database Lockouts . | . . . . Manual 1 | . 1 . . Terminals 6 | . 6 . . Fabricators . | . . . . Repair Stations . | . . . . Recycling Units . | . . . . Scanalyzers . | . . . . Garrison Access . | . . . . Terminal Hacks 21 | . 1 . 20 Record 20 | . . . 20 Zone Layout 1 | . 1 . . Fabricator Hacks . | . . . . Repair Station Hacks . | . . . . Recycling Unit Hacks . | . . . . Scanalyzer . | . . . . Garrison Access Hacks . | . . . . Unauthorized Hacks . | . . . . Terminals . | . . . . Fabricators . | . . . . Repair Stations . | . . . . Recycling Units . | . . . . Scanalyzers . | . . . . Garrison Access . | . . . . Data Cores Recovered . | . . . . Used . | . . . . Hacking Detections 2 | . 2 . . Full Trace Events . | . . . . Feedback Events . | . . . . Feedback Blocked . | . . . . Robot Schematics Acquired . | . . . . Robots Built . | . . . . Authchips . | . . . . Time . | . . . . Total Robot Build Rating . | . . . . Part Schematics Acquired . | . . . . Parts Built . | . . . . Authchips . | . . . . Time . | . . . . Total Part Build Rating . | . . . . Part Studies Acquired . | . . . . Parts Repaired . | . . . . Time . | . . . . Parts Recycled . | . . . . Recycled Matter . | . . . . Retrieved Matter . | . . . . Retrieved Components . | . . . . Parts Scanalyzed . | . . . . Part Schematics Acquired . | . . . . Parts Damaged . | . . . . Bothacking | -11 -10 -10 -7 ------------ Run | Yrd Mat Sub Scr Used RIF Installer . | . . . . Robots Hacked . | . . . . Non-combat . | . . . . Combat . | . . . . Robot Hacks Applied . | . . . . Relay Couplers Released . | . . . . Fabnet Peak Effective % . | . . . . Robots Rewired . | . . . . Allies Hacked . | . . . . Hacks Repelled . | . . . . Allies | -11 -10 -10 -7 -------- Run | Yrd Mat Sub Scr Total Allies . | . . . . Largest Group . | . . . . Highest-Rated Group . | . . . . Highest-Rated Ally . | . . . . Total Orders . | . . . . Ally Attacks . | . . . . Total Damage . | . . . . Kills . | . . . . Allies Corrupted . | . . . . Allies Melted 5 | . . . 5 X0-1V1 Amusement Gains 114 | . 2 10 102 Average Entertainment 32 | . 2 6 75 Good Acts 5 | . . 2 3 Bad Acts 4 | . . 3 1 Intel | -11 -10 -10 -7 ------- Run | Yrd Mat Sub Scr Active Infowar (turns) 449 | . 449 . . Optics 449 | . 449 . . Robot Analysis Total . | . . . . Derelict Logs Recovered 1 | . . 1 . Drone Launches . | . . . . Drone Recoveries . | . . . . Exploration | -11 -10 -10 -7 ------------- Run | Yrd Mat Sub Scr Turns Passed 2087 | 39 570 312 1166 Spaces Moved 1648 | 39 390 249 970 Core 24 | 23 . . 1 Treads . | . . . . Legs 381 | . . . 381 Wheels 1243 | 16 390 249 588 Hover . | . . . . Flight . | . . . . Fastest Speed 50 | 50 100 100 95 Average Speed 108 | 70 100 100 116 Slowest Speed 350 | 100 100 100 350 Overloaded Moves . | . . . . Propulsion Burnouts . | . . . . Robots Hopped . | . . . . Potential Cave-ins . | . . . . Cave-ins Triggered . | . . . . Exploration Rate (%) 38 | 3 59 22 70 Regions Visited 3 Branch Regions 2 Pre-discovered Areas . | . . . . Known Exits Taken . | . . . . Unknown Exits Taken 3 | 1 1 1 . Scrap Searched 2 | . . . 2 Spaces Dug . | . . . . Terrain Destroyed 16 | . . 16 . Melee . | . . . . Projectile . | . . . . AOE 16 | . . 16 . Terrain Rammed . | . . . . Walls Destroyed . | . . . . Machines Disabled . | . . . . Actions | -11 -10 -10 -7 --------- Run | Yrd Mat Sub Scr Total 1871 | 50 535 273 1013 Wait 115 | . 115 . . Move 1645 | 38 389 248 970 Hop . | . . . . Pick Up 27 | 6 7 2 12 Fast Attach 6 | 1 1 . 4 Attach 12 | 4 2 3 3 Detach 2 | . . . 2 Swap 9 | . 2 1 6 Drop 17 | 1 2 . 14 Fire 38 | . 17 19 2 Melee . | . . . . Ram . | . . . . Kick . | . . . . Crush . | . . . . Escape Stasis . | . . . . Rewire . | . . . . Trap . | . . . . Miscellaneous . | . . . . Route ------- -11/Scrapyard -10/Materials (discovered 4 exits: [*Mat x2] / [*Min] / [*Sub]) -10/Subcaves (discovered 2 exits: [*Rec] / *Scr) -7/Scraptown (discovered 2 exits: *Fac x2) History --------- Turn | Location | Event 4 | -11/Scrapyard | Discovered new exit (range 15) 40 | -11/Scrapyard | Entered Materials 256 | -10/Materials | Discovered new exit (range 11) 302 | -10/Materials | Build established: Mutant 429 | -10/Materials | Discovered new exit (range 8) 436 | -10/Materials | Discovered new exit (range 16) 581 | -10/Materials | Discovered new exit (range 10) 605 | -10/Materials | Prayed at D.C.S.S. Altar Unit 610 | -10/Materials | Entered Subcaves 611 | -10/Subcaves | Approached by a straggling Scientist 611 | -10/Subcaves | Learned Materials security intel 690 | -10/Subcaves | X0-1V1 sent hostile S-10 Pest (x3) 747 | -10/Subcaves | Discovered new exit (range 10) 806 | -10/Subcaves | Lost 3 parts (1p1n1u) 810 | -10/Subcaves | A swath of the cavern ceiling suddenly collapsed 922 | -10/Subcaves | Entered Scraptown 1197 | -7/Scraptown | Discovered new exit (range 11) 1282 | -7/Scraptown | Visited Shadow of the Wyrm 1313 | -7/Scraptown | Visited CR-KLE's Repair Center 1320 | -7/Scraptown | CR-KLE repaired 1 part 1334 | -7/Scraptown | Visited Spacefarers 1397 | -7/Scraptown | Visited Red Mages 1422 | -7/Scraptown | Visited Cave Peace 1454 | -7/Scraptown | Visited Fellowship of the Rings 1485 | -7/Scraptown | Visited UFD Registry 1485 | -7/Scraptown | Registered with UFD as "Thunderstep" 1515 | -7/Scraptown | Visited Supply Room 1582 | -7/Scraptown | Visited Observation Area 1626 | -7/Scraptown | Visited Abandonware Association 1675 | -7/Scraptown | Met Optimus 1675 | -7/Scraptown | Accepted into 0bPrime 1768 | -7/Scraptown | Visited Infowarlord's Domain 1776 | -7/Scraptown | Found Exp. Terrain Scanner 1795 | -7/Scraptown | Civil war broke out across Scraptown 1799 | -7/Scraptown | Visited Scrapoid Pod Storage 1806 | -7/Scraptown | Found Scrapoid Pod 1848 | -7/Scraptown | Found Deep Structural Scanner 1852 | -7/Scraptown | Lost 4 allies 1871 | -7/Scraptown | Core integrity permanently improved by X0-1V1 (+200) 1933 | -7/Scraptown | Lost 3 allies 1964 | -7/Scraptown | Identified exit to Factory 2006 | -7/Scraptown | Lost 5 allies 2035 | -7/Scraptown | Optimus destroyed in the chaos of civil war 2084 | -7/Scraptown | Core integrity fell below 50% 2088 | -7/Scraptown | Core integrity fell below 20% 2088 | -7/Scraptown | Destroyed by 85-YH2(l) with Ripper Last Messages --------------- repair Ovr. Pulse Rifle. 02077_ Bolt penetrates Machine. 02077_ Penetrated by Bolt. 02077_ Imp. Deuterium Engine destroyed. 02080_ SV-XAY(j) cannibalizes Lgt. Deuterium Engine to repair Lgt. Deuterium Engine. 02080_ Bolt penetrates Machine. 02080_ Penetrated by Bolt. 02082_ Acquired 10 matter. 02083_ Bolt penetrates 85-YH2(l). 02083_ Bolt penetrates Wall. 02083_ Ovr. Titanium Leg severed. 02084_ VSS Leg destroyed. 02085_ WC-WEH(j) cannibalizes Ovr. Pulse Rifle to repair Ovr. Pulse Rifle. 02086_ Lgt. Deuterium Engine destroyed. 02088_ Hvy. Battle Rifle destroyed. 02088_ Bolt penetrates Machine. 02088_ Critical hit (Burn: +50). 02088_ X0-1V1 bursts into laughter! Map ----- +----------------------------------------------------+ | " "??????????????# #???????? "??????????????? | | """?????#"##???# #???????# #??????????????? | | "" """?????# X###?# #?????? " ???????????????? | | ? "????? #?# ####### #????????????????? | | ?? ??????? ??# # ????????????????? | | ??? ????????? ???#!=# ??????????????????? | | #### #?###?????# #???#[%## #"#???????????????????? | | #"!# ###"####### ##### ["#*!########?????????????? | | %* !" """"" """"" "% ##"""" #?????????????? | | = [%=] = %[= ## "#?????????????? | | * %&[! [%[=!! ## !"#?????????????? | | *!%[%! =!%%=! ## "#?????????????? | | *[[=* *%! ="##! "#?????????????? | | %= = &%=!/ "#?????????????? | | """"""""""""""" """"[ [!%# #?????????????? | | """"""""""""""""""""""! "##"""""""""??????????? | | ## ################""% ! ##########???????????? | | ##????????#""j %"#????????????????????? | | X"#????????#"!! *"###########??????????? | | "" "" ##????????#"=!==!%"## #??????????? | | " "" X"#???##?###""!*!! ## #??????????? | | " ######=%#[#""!=[! "## #??????????? | | "" *%**![!%!=!%=%/![* #??????????? | | =%! [ =%==[%!!!!!%!%"## #??????????? | | " ##"######=#*[!%lj/!###########??????????? | | " "" ""#??????###!%%*=@= #????????????????????? | | "" "" ##????????#"%[![=["#???#######??????????? | | X"#????????#"%!!=!="#?? ???????????? | | ##????????#"[*%%*="#?? ????????????? | | ## ################ !*==!"#? """"?????????????? | | """"""""""""""""""""""gj=[%"##[ "#???????????????? | | """"""""""""""""""""=[%*=%=*%!! "#???????????????? | | [%=% % [!%==!h##! "#???????????????? | | !![[[*=%!%%/!#? """"?????????????? | | * %!=[%!=!!=!!#?? ????????????? | | [%= *!===%!=%%!##? ???????????? | | ! =/%[!!=!=![!#??#######??????????? | | """""" """""" """ *" "!%[=##???????????????????? | | ###### #########*#!#####!![!#????????????????????? | | ????"""""?????#%!%%! #*!%!#???????????????????? | | ??# ???#!% = ""# =*##???????????????????? | | ??#""" """#?#! ! "# ![#????????????????????? | | ??#" "#?#" """"" "# [!#????????????????????? | | ??#""" " """#?#" "???" "# *%#????????????????????? | | ??#""" " """#?#" "???" "# %="????????????????????? | | ???? " "#?#" "???" "# [*[ ???????????????????? | | ?????""""""???#" "???" "# ????????????????????? | | ?????######???#" """"" "# ???????????????????? | | ??????????????#" "# ???????????????????? | | ??????????????#"""""""""# ???????????????????? | +----------------------------------------------------+ Best States ------------- Heat Dissipation 35 Energy Generation 16 Energy Capacity 290 Matter Stores 700 Matter Capacity 700 Sight Range 18 Terrain Scan Density 10 Armor Coverage 150 Evasion (%) 56 Item Schematics ----------------- None Robot Schematics ------------------ None Fabricated ------------ Nothing Repaired ---------- Nothing Studied --------- None Alien Tech Used ----------------- None Achievements -------------- Link The Feds Challenges ------------ None Game ------ Seed BackupSurgeMaul Manual? 0 Play Time 00:29:14 Cumulative 20.0 hours Start 2026.08.25 @ 17:10:46 End 2026.08.25 @ 18:05:16 Sessions 1 Manual Loads 0 Difficulty Rogue Special Mode None Game No. 25 Rogue 20 Adventurer 5 Explorer 0 Win Type - Total 0 Types 0/0/0/0/0/0/0/0/0/0 Lore% 17 Gallery% 22 Achievement% 20 Wizard Run 0 Options --------- Layout 1 ASCII 0 Keyboard 0 Movement Mouse Keybinds 0 Fullscreen 2 Font 24/Smallcaps Map View 50x35 Zoom Use 0% Tactical HUD 1 Map Filters NONE Filters NONE Steam 1 RUN: a58b3dfd-67bc-4ba4-9872-9351492bc305